bitfinex-derivatives/quotes_BTCF0:USTF0_20250810
["timestamp","ask_amount","ask_price","bid_price","bid_amount"]
[1754789641587,0.02085456,116740.0,116730.0,1.33257624]
[1754789641785,0.02085456,116740.0,116730.0,1.59324326]
[1754789641986,0.02085456,116740.0,116730.0,1.59424326]
[1754789644391,0.02365,116750.0,116730.0,1.76552336]
[1754789644686,0.02345,116750.0,116740.0,2.02927626]
[1754789644993,0.02365,116760.0,116740.0,2.55517716]
[1754789645191,0.04463907,116760.0,116750.0,0.96976184]
[1754789645379,0.10214,116760.0,116750.0,0.96976184]
[1754789645585,0.12359,116760.0,116750.0,0.96976184]
[1754789646485,0.12459,116760.0,116750.0,0.96976184]
[1754789648188,0.12459,116760.0,116750.0,0.97076184]
[1754789648690,0.12359,116760.0,116750.0,0.4484278]
[1754789649087,0.12359,116760.0,116750.0,0.97176184]
[1754789649488,0.12359,116760.0,116750.0,0.4484278]
[1754789649681,0.12359,116760.0,116750.0,1.24076184]
[1754789650890,0.12359,116760.0,116750.0,0.7174278]
[1754789651087,0.12359,116760.0,116750.0,1.23976184]
[1754789651288,0.12459,116760.0,116750.0,1.23876184]
[1754789655990,0.14575169,116760.0,116750.0,1.23876184]
[1754789659103,0.12459,116760.0,116750.0,1.23876184]
[1754789660402,0.12459,116760.0,116750.0,0.7154278]
[1754789660701,0.12459,116760.0,116750.0,1.23876184]
[1754789661301,0.1457627,116760.0,116750.0,1.23876184]
[1754789670703,0.1457627,116760.0,116750.0,0.7154278]
[1754789671003,0.1457627,116760.0,116750.0,1.23876184]
[1754789671405,0.1280927,116760.0,116750.0,1.23876184]
[1754789674502,0.0951027,116760.0,116750.0,1.23876184]
[1754789677500,0.0951027,116760.0,116750.0,1.2473697]
[1754789679600,0.0951027,116760.0,116750.0,1.23876184]
[1754789682109,0.0951027,116760.0,116750.0,1.59956184]
[1754789682615,0.0951027,116760.0,116750.0,1.0762278]
[1754789682907,0.0951027,116760.0,116750.0,1.59956184]
[1754789683409,0.1448927,116760.0,116750.0,1.59956184]
[1754789683707,0.2147532,116760.0,116750.0,0.8072278]
[1754789683911,0.49401022,116760.0,116750.0,0.0856278]
[1754789684110,0.49401022,116760.0,116750.0,1.14553482]
[1754789685604,0.49401022,116760.0,116750.0,0.8838678]
[1754789686006,0.75567724,116760.0,116750.0,1.14553482]
[1754789686310,0.49401022,116760.0,116750.0,1.14553482]
[1754789686807,0.2323432,116760.0,116750.0,1.14553482]
[1754789687203,0.49401022,116760.0,116750.0,1.14553482]
[1754789687505,0.85481022,116760.0,116750.0,1.14553482]
[1754789687714,0.5931432,116760.0,116750.0,1.14553482]
[1754789687906,0.85481022,116760.0,116750.0,1.14553482]
[1754789688107,0.5931432,116760.0,116750.0,1.14553482]
[1754789688412,0.85481022,116760.0,116750.0,1.14553482]
[1754789688811,0.5931432,116760.0,116750.0,1.14553482]
[1754789689114,0.85481022,116760.0,116750.0,1.14553482]
[1754789690310,0.85481022,116760.0,116750.0,0.8838678]
[1754789690612,0.85481022,116760.0,116750.0,1.14553482]
[1754789691209,0.85481022,116760.0,116750.0,1.12253482]
[1754789692608,0.85481022,116760.0,116750.0,1.11953482]
[1754789692910,0.85481022,116760.0,116750.0,1.11553482]
[1754789693211,1.11647724,116760.0,116750.0,0.0556278]
[1754789693410,0.2113878,116750.0,116740.0,1.40318312]
[1754789693610,0.85502752,116750.0,116740.0,1.01871832]
[1754789693815,0.85502752,116750.0,116740.0,0.9703081]
[1754789694106,0.2113952,116740.0,116730.0,0.51868402]
[1754789694307,0.85503492,116740.0,116730.0,0.1712764]
[1754789694513,0.85503492,116740.0,116730.0,0.9709164]
[1754789694707,0.85503492,116740.0,116730.0,1.23258342]
[1754789696108,0.5933679,116740.0,116730.0,1.23258342]
[1754789696413,0.85503492,116740.0,116730.0,0.9709164]
[1754789696603,0.85903492,116740.0,116730.0,0.9719164]
[1754789696798,0.85903492,116740.0,116730.0,1.23358342]
[1754789697012,0.86103492,116740.0,116730.0,1.23358342]
[1754789697810,0.85903492,116740.0,116730.0,1.23358342]
[1754789698109,0.5993679,116740.0,116730.0,1.23358342]
[1754789698306,0.86103492,116740.0,116730.0,1.23358342]
[1754789698616,0.5993679,116740.0,116730.0,1.23358342]
[1754789698815,0.86103492,116740.0,116730.0,1.23358342]
[1754789699015,0.50023492,116740.0,116730.0,1.23358342]
[1754789699314,0.86103492,116740.0,116730.0,1.23358342]
[1754789701215,0.86103492,116740.0,116730.0,0.9719164]
[1754789701616,0.86103492,116740.0,116730.0,1.23358342]
[1754789703518,0.86103492,116740.0,116730.0,0.9719164]
[1754789703718,0.86103492,116740.0,116730.0,1.23358342]
[1754789704418,0.86103492,116740.0,116730.0,0.9719164]
[1754789704722,0.86103492,116740.0,116730.0,1.23358342]
[1754789705320,0.5993679,116740.0,116730.0,1.23358342]
[1754789705519,0.86103492,116740.0,116730.0,1.23358342]
[1754789706220,0.5993679,116740.0,116730.0,1.23358342]
[1754789706419,0.86103492,116740.0,116730.0,1.23358342]
[1754789707523,0.5993679,116740.0,116730.0,1.23358342]
[1754789707721,0.86103492,116740.0,116730.0,1.23358342]
[1754789708524,0.5993679,116740.0,116730.0,1.23358342]
[1754789708830,0.86103492,116740.0,116730.0,1.23358342]
[1754789710719,0.5993679,116740.0,116730.0,1.23358342]
[1754789710925,0.86103492,116740.0,116730.0,1.23358342]
[1754789712227,0.1373079,116740.0,116730.0,1.85701044]
[1754789712521,0.2176079,116740.0,116730.0,1.59534342]
[1754789712724,0.2402679,116740.0,116730.0,1.59534342]
[1754789714326,0.50193492,116740.0,116730.0,1.59566342]
[1754789715428,0.50193492,116740.0,116730.0,1.23486342]
[1754789715624,0.6010679,116740.0,116730.0,1.23486342]
[1754789715820,0.86273492,116740.0,116730.0,1.23486342]
[1754789717228,0.86273492,116740.0,116730.0,0.9731964]
[1754789717416,0.86273492,116740.0,116730.0,1.23486342]
[1754789719228,0.50193492,116740.0,116730.0,1.23486342]
[1754789719429,0.2402679,116740.0,116730.0,1.23486342]
[1754789719630,0.50193492,116740.0,116730.0,1.23486342]
[1754789720428,0.86273492,116740.0,116730.0,1.23486342]
[1754789720928,0.86273492,116740.0,116730.0,0.9731964]
[1754789721327,0.86273492,116740.0,116730.0,1.23486342]
[1754789721630,0.86273492,116740.0,116730.0,0.43394342]
[1754789722128,0.5545879,116740.0,116730.0,0.43394342]
[1754789722331,0.86273492,116740.0,116730.0,0.43394342]
[1754789722934,1.66453492,116740.0,116730.0,0.43394342]
[1754789723634,0.86273492,116740.0,116730.0,0.43394342]
[1754789724443,0.92443755,116740.0,116730.0,0.43394342]
[1754789726744,0.66277053,116740.0,116730.0,0.43394342]
[1754789726944,0.92443755,116740.0,116730.0,0.1722764]
[1754789727143,0.92443755,116740.0,116730.0,0.43394342]
[1754789729554,0.56363755,116740.0,116730.0,0.43394342]
[1754789729757,0.92443755,116740.0,116730.0,0.43394342]
[1754789730148,0.56363755,116740.0,116730.0,0.43394342]
[1754789730455,0.92443755,116740.0,116730.0,0.43394342]
[1754789730754,0.66277053,116740.0,116730.0,0.43394342]
[1754789731055,0.92443755,116740.0,116730.0,0.43394342]
[1754789731253,0.66277053,116740.0,116730.0,0.43394342]
[1754789731453,0.92443755,116740.0,116730.0,0.43394342]
[1754789732259,0.66277053,116740.0,116730.0,0.43394342]
[1754789732448,0.92443755,116740.0,116730.0,0.43394342]
[1754789734455,0.86273492,116740.0,116730.0,0.43394342]
[1754789734651,0.2402679,116740.0,116730.0,0.43394342]
[1754789736255,0.50193492,116740.0,116730.0,0.43394342]
[1754789736860,0.2402679,116740.0,116730.0,0.43394342]
[1754789737053,0.50193492,116740.0,116730.0,0.43394342]
[1754789737253,0.2402679,116740.0,116730.0,0.43394342]
[1754789737763,0.2402679,116740.0,116730.0,0.1722764]
[1754789737962,0.50193492,116740.0,116730.0,0.43394342]
[1754789738256,0.86273492,116740.0,116730.0,0.43394342]
[1754789738461,1.03401782,116740.0,116730.0,0.34730762]
[1754789738664,1.03401782,116740.0,116730.0,0.43294822]
[1754789740858,0.7723508,116740.0,116730.0,0.1712812]
[1754789741057,1.03401782,116740.0,116730.0,0.43294822]
[1754789742067,0.67321782,116740.0,116730.0,0.43294822]
[1754789742260,1.03401782,116740.0,116730.0,0.43294822]
[1754789742668,0.67321782,116740.0,116730.0,0.43294822]
[1754789742868,1.03401782,116740.0,116730.0,0.43294822]
[1754789743768,0.67321782,116740.0,116730.0,0.43294822]
[1754789745069,0.67321782,116740.0,116730.0,0.1712812]
[1754789745270,0.67321782,116740.0,116730.0,0.43294822]
[1754789746069,1.03401782,116740.0,116730.0,0.43294822]
[1754789746568,1.03401782,116740.0,116730.0,0.1712812]
[1754789746769,1.03401782,116740.0,116730.0,0.43294822]
[1754789747570,1.03401782,116740.0,116730.0,0.1712812]
[1754789747770,0.7723508,116740.0,116730.0,0.43294822]
[1754789748072,1.03401782,116740.0,116730.0,0.43294822]
[1754789749671,0.7723508,116740.0,116730.0,0.43294822]
[1754789749871,0.7723508,116740.0,116730.0,0.1712812]
[1754789750071,1.03401782,116740.0,116730.0,0.43294822]
[1754789753873,0.7723508,116740.0,116730.0,0.43294822]
[1754789754068,1.03401782,116740.0,116730.0,0.43294822]
[1754789754269,0.7723508,116740.0,116730.0,0.43294822]
[1754789754466,1.03401782,116740.0,116730.0,0.43294822]
[1754789754667,1.03401782,116740.0,116730.0,0.1712812]
[1754789754873,1.03401782,116740.0,116730.0,0.43294822]
[1754789755566,1.03401782,116740.0,116730.0,0.1712812]
[1754789755771,0.7723508,116740.0,116730.0,0.43294822]
[1754789756069,1.03401782,116740.0,116730.0,0.43294822]
[1754789756874,1.03401782,116740.0,116730.0,0.1712812]
[1754789757075,1.03401782,116740.0,116730.0,0.43294822]
[1754789759874,1.03401782,116740.0,116730.0,0.1712812]
[1754789760074,1.03401782,116740.0,116730.0,0.43294822]
[1754789760880,0.7723508,116740.0,116730.0,0.43294822]
[1754789761080,1.03401782,116740.0,116730.0,0.43294822]
[1754789761582,0.7723508,116740.0,116730.0,0.43294822]
[1754789761879,1.03401782,116740.0,116730.0,0.43294822]
[1754789762284,1.03401782,116740.0,116730.0,0.1712812]
[1754789762480,1.03401782,116740.0,116730.0,0.43294822]
[1754789764384,0.7723508,116740.0,116730.0,0.43294822]
[1754789764681,1.03401782,116740.0,116730.0,0.43294822]
[1754789765082,1.03401782,116740.0,116730.0,0.43488822]
[1754789769090,1.03401782,116740.0,116730.0,0.1732212]
[1754789769286,1.03401782,116740.0,116730.0,0.43488822]
[1754789769789,1.03401782,116740.0,116730.0,0.43294822]
[1754789774391,1.03404828,116740.0,116730.0,0.43294822]
[1754789774592,1.09575091,116740.0,116730.0,0.1712812]
[1754789774790,1.09575091,116740.0,116730.0,0.43294822]
[1754789778091,1.03404828,116740.0,116730.0,0.43294822]
[1754789778599,1.03404828,116740.0,116730.0,0.1712812]
[1754789778894,1.03404828,116740.0,116730.0,0.43294822]
[1754789780402,1.03404828,116740.0,116730.0,0.1712812]
[1754789780595,1.03404828,116740.0,116730.0,0.43294822]
[1754789781889,0.58760598,116740.0,116730.0,0.43294822]
[1754789782199,0.64930861,116740.0,116730.0,0.43355822]
[1754789782895,1.01010861,116740.0,116730.0,0.43355822]
[1754789784202,1.01010861,116740.0,116730.0,0.39283942]
[1754789784500,0.94840598,116740.0,116730.0,0.39283942]
[1754789784901,0.94840598,116740.0,116730.0,0.39183942]
[1754789785203,0.58760598,116740.0,116730.0,0.39183942]
[1754789785903,0.58760598,116740.0,116730.0,0.39083942]
[1754789786110,0.58760598,116740.0,116730.0,0.38983942]
[1754789786407,0.58760598,116740.0,116730.0,0.1718912]
[1754789786707,0.58760598,116740.0,116730.0,0.43355822]
[1754789787109,0.58760598,116740.0,116730.0,0.43155822]
[1754789787406,0.58760598,116740.0,116730.0,0.39355822]
[1754789788108,0.58760598,116740.0,116730.0,0.39155822]
[1754789788312,0.32593896,116740.0,116730.0,0.39155822]
[1754789788502,0.58760598,116740.0,116730.0,0.39155822]
[1754789789010,0.58760598,116740.0,116730.0,0.39055822]
[1754789789311,0.58760598,116740.0,116730.0,0.38455822]
[1754789790011,0.58760598,116740.0,116730.0,0.43294822]
[1754789790610,0.58760598,116740.0,116730.0,0.43194822]
[1754789791001,0.58760598,116740.0,116730.0,0.42994822]
[1754789791910,0.58760598,116740.0,116730.0,0.42894822]
[1754789792211,0.50196508,116740.0,116730.0,0.1662812]
[1754789792418,0.50196508,116740.0,116730.0,0.42794822]
[1754789792912,0.50196508,116740.0,116730.0,0.42694822]
[1754789793414,0.15466316,116740.0,116730.0,0.42694822]
[1754789793607,0.07938316,116740.0,116730.0,1.04941524]
[1754789793913,0.15461316,116740.0,116730.0,1.04941524]
[1754789795109,0.15461316,116740.0,116730.0,1.05036524]
[1754789798020,0.13515316,116740.0,116730.0,1.05036524]
[1754789799019,0.10203316,116740.0,116730.0,1.05036524]
[1754789799613,0.02720316,116740.0,116730.0,1.05036524]
[1754789799818,0.05037316,116740.0,116730.0,1.05036524]
[1754789800317,0.05037316,116740.0,116730.0,1.05187524]
[1754789805421,0.05037316,116740.0,116730.0,0.69107524]
[1754789805623,0.05037316,116740.0,116730.0,1.05187524]
[1754789809423,0.05037316,116740.0,116730.0,0.69107524]
[1754789809622,0.05037316,116740.0,116730.0,1.05187524]
[1754789810728,0.06626316,116740.0,116730.0,1.05187524]
[1754789811022,0.11196316,116740.0,116730.0,1.05187524]
[1754789811223,0.13013316,116740.0,116730.0,1.05187524]
[1754789811422,0.13013316,116740.0,116730.0,0.79020822]
[1754789811623,0.15291316,116740.0,116730.0,0.79020822]
[1754789816227,0.15291316,116740.0,116730.0,1.05187524]
[1754789818029,0.07838316,116740.0,116730.0,1.05187524]
[1754789818824,0.05037316,116740.0,116730.0,1.05187524]
[1754789819020,0.05037316,116740.0,116730.0,0.5285412]
[1754789819218,0.05037316,116740.0,116730.0,1.05187524]
[1754789821327,0.04837316,116740.0,116730.0,1.05187524]
[1754789821634,0.04437316,116740.0,116730.0,1.05187524]
[1754789821831,0.04637316,116740.0,116730.0,1.05187524]
[1754789822430,0.02320316,116740.0,116730.0,1.05187524]
[1754789822826,0.04637316,116740.0,116730.0,1.05187524]
[1754789824136,0.04637316,116740.0,116730.0,0.5285412]
[1754789824335,0.04637316,116740.0,116730.0,1.32087524]
[1754789824536,0.02517,116740.0,116730.0,1.32087524]
[1754789825739,0.02517,116740.0,116730.0,0.7975412]
[1754789826037,0.02517,116740.0,116730.0,1.32087524]
[1754789827725,0.0247,116740.0,116730.0,1.32087524]
[1754789833542,0.0247,116740.0,116730.0,0.7975412]
[1754789833732,0.0247,116740.0,116730.0,1.32087524]
[1754789835842,0.0227,116740.0,116730.0,1.32087524]
[1754789837747,0.07486,116750.0,116740.0,0.086307]
[1754789838042,0.12767171,116750.0,116740.0,1.77716104]
[1754789838248,0.09576171,116750.0,116740.0,1.77716104]
[1754789839050,0.12967171,116750.0,116740.0,1.77716104]
[1754789840951,0.14877171,116750.0,116740.0,1.253827]
[1754789841246,0.14877171,116750.0,116740.0,1.77716104]
[1754789841942,0.14877171,116750.0,116740.0,2.04616104]
[1754789844047,0.41043873,116750.0,116740.0,1.522827]
[1754789844247,0.41043873,116750.0,116740.0,1.78449402]
[1754789844444,0.14877171,116750.0,116740.0,1.78449402]
[1754789846151,0.14877171,116750.0,116740.0,1.522827]
[1754789846451,0.14877171,116750.0,116740.0,2.04616104]
[1754789847950,0.14877171,116750.0,116740.0,1.77716104]
[1754789848553,0.14877171,116750.0,116740.0,1.77690104]
[1754789849351,0.14877171,116750.0,116740.0,1.253567]
[1754789849551,0.14877171,116750.0,116740.0,1.77690104]
[1754789855648,0.14877171,116750.0,116740.0,0.446847]
[1754789855649,0.41043873,116750.0,116740.0,0.446847]
[1754789855853,0.41043873,116750.0,116740.0,0.97018104]
[1754789856054,0.14877171,116750.0,116740.0,0.97018104]
[1754789857859,0.14877171,116750.0,116740.0,0.446847]
[1754789858156,0.14877171,116750.0,116740.0,0.97018104]
[1754789862759,0.14877171,116750.0,116740.0,0.446847]
[1754789863061,0.14877171,116750.0,116740.0,0.97018104]
[1754789864157,0.14877171,116750.0,116740.0,0.60938104]
[1754789864353,0.14877171,116750.0,116740.0,0.086047]
[1754789864563,0.14877171,116750.0,116740.0,0.446847]
[1754789864755,0.14877171,116750.0,116740.0,0.97018104]
[1754789870260,0.04590171,116750.0,116740.0,0.97018104]
[1754789870955,0.07952171,116750.0,116740.0,0.97018104]
[1754789873263,0.07952171,116750.0,116740.0,0.446847]
[1754789873560,0.10735171,116750.0,116740.0,0.97018104]
[1754789873757,0.12526171,116750.0,116740.0,0.97018104]
[1754789875963,0.10735171,116750.0,116740.0,0.97018104]
[1754789877465,0.12526171,116750.0,116740.0,0.97018104]
[1754789877770,0.14749171,116750.0,116740.0,0.97018104]
[1754789878165,0.14751846,116750.0,116740.0,0.97018104]
[1754789892175,0.14751846,116750.0,116740.0,0.446847]
[1754789892376,0.14751846,116750.0,116740.0,0.97018104]
[1754789897471,0.02322846,116750.0,116740.0,1.23184806]
[1754789897677,0.02322846,116750.0,116740.0,0.97018104]
[1754789898275,0.04583846,116750.0,116740.0,0.97018104]
[1754789898671,0.04583846,116750.0,116740.0,1.23184806]
[1754789898874,0.02322846,116750.0,116740.0,1.23184806]
[1754789899784,0.04583846,116750.0,116740.0,1.23184806]
[1754789900274,0.04583846,116750.0,116740.0,0.97018104]
[1754789900682,0.04583846,116750.0,116740.0,1.23184806]
[1754789903279,0.04583846,116750.0,116740.0,0.97018104]
[1754789904381,0.04583846,116750.0,116740.0,0.086047]
[1754789904581,0.04583846,116750.0,116740.0,0.97018104]
[1754789905185,0.04583846,116750.0,116740.0,1.23184806]
[1754789908992,0.12649846,116750.0,116740.0,0.97018104]
[1754789909181,0.09455846,116750.0,116740.0,0.97018104]
[1754789909385,0.14766846,116750.0,116740.0,0.97018104]
[1754789910597,0.07338846,116750.0,116740.0,0.97018104]
[1754789911400,0.12649846,116750.0,116740.0,0.97018104]
[1754789913194,0.14766846,116750.0,116740.0,0.97018104]
[1754789914596,0.14766846,116750.0,116740.0,0.446847]
[1754789914803,0.14766846,116750.0,116740.0,0.97018104]
[1754789918001,0.14766846,116750.0,116740.0,1.77914104]
[1754789920916,0.14773846,116750.0,116740.0,1.41834104]
[1754789921413,0.85584448,116750.0,116740.0,0.085637]
[1754789921603,0.85584448,116750.0,116740.0,0.34730402]
[1754789923913,0.85584448,116750.0,116740.0,0.085637]
[1754789924112,0.85584448,116750.0,116740.0,0.34730402]
[1754789924410,0.77020548,116750.0,116740.0,0.34730402]
[1754789925218,0.50850298,116750.0,116740.0,0.34730402]
[1754789925418,0.77017,116750.0,116740.0,0.34730402]
[1754789927321,0.855809,116750.0,116740.0,0.34730402]
[1754789928021,0.855809,116750.0,116740.0,0.085637]
[1754789928221,0.855809,116750.0,116740.0,0.34730402]
[1754789930821,0.855809,116750.0,116740.0,0.34530402]
[1754789932916,0.855809,116750.0,116740.0,0.34430402]
[1754789933521,0.855809,116750.0,116740.0,0.34230402]
[1754789933922,1.0270963,116750.0,116740.0,0.26166702]
[1754789934229,1.0270963,116750.0,116740.0,0.34730402]
[1754789936427,1.8381363,116750.0,116740.0,0.34730402]
[1754789937030,1.9237827,116750.0,116730.0,1.41450662]
[1754789937329,0.83471342,116740.0,116730.0,1.1528396]
[1754789937626,0.8559064,116740.0,116730.0,1.1527396]
[1754789937829,0.59423938,116740.0,116730.0,1.1527396]
[1754789938324,0.8559064,116740.0,116730.0,1.41440662]
[1754789938633,0.59423938,116740.0,116730.0,1.41440662]
[1754789938832,0.8559064,116740.0,116730.0,1.41440662]
[1754789939023,0.59423938,116740.0,116730.0,1.41440662]
[1754789939224,0.50959298,116740.0,116730.0,1.41440662]
[1754789940231,0.51259298,116740.0,116730.0,1.41540662]
[1754789940529,0.59823938,116740.0,116730.0,1.41540662]
[1754789940923,0.51259298,116740.0,116730.0,1.41540662]
[1754789942132,0.51259298,116740.0,116730.0,1.1537396]
[1754789942333,0.51259298,116740.0,116730.0,1.41540662]
[1754789942534,0.51259298,116740.0,116730.0,1.1537396]
[1754789942833,0.51259298,116740.0,116730.0,1.41540662]
[1754789943036,0.59823938,116740.0,116730.0,1.41540662]
[1754789943835,0.51259298,116740.0,116730.0,1.41540662]
[1754789944732,0.77426,116740.0,116730.0,1.41540662]
[1754789945135,0.77426,116740.0,116730.0,1.41662662]
[1754789946139,0.8599063,116740.0,116730.0,1.41662662]
[1754789946636,0.51259298,116740.0,116730.0,1.1549596]
[1754789946833,0.77426,116740.0,116730.0,1.41662662]
[1754789947637,0.8599063,116740.0,116730.0,1.41662662]
[1754789948734,0.8599063,116740.0,116730.0,1.1549596]
[1754789948940,0.8605263,116740.0,116730.0,1.41922662]
[1754789951133,0.8605263,116740.0,116730.0,1.1575596]
[1754789951334,0.8605263,116740.0,116730.0,1.41922662]
[1754789953138,0.8605263,116740.0,116730.0,1.1575596]
[1754789953343,0.8605263,116740.0,116730.0,1.41922662]
[1754789954245,0.59885928,116740.0,116730.0,1.41922662]
[1754789954447,0.8605263,116740.0,116730.0,1.41922662]
[1754789954638,0.8605263,116740.0,116730.0,1.41800662]
[1754789954834,0.8605263,116740.0,116730.0,1.41922662]
[1754789956048,0.8605263,116740.0,116730.0,1.1575596]
[1754789956245,0.8605263,116740.0,116730.0,1.41922662]
[1754789958746,0.59885928,116740.0,116730.0,1.41922662]
[1754789959148,0.8605263,116740.0,116730.0,1.41922662]
[1754789960747,0.59885928,116740.0,116730.0,1.41922662]
[1754789960947,0.8605263,116740.0,116730.0,1.1575596]
[1754789961145,0.8605272,116740.0,116730.0,1.41922662]
[1754789961346,0.8605272,116740.0,116730.0,1.1575596]
[1754789961942,0.8605272,116740.0,116730.0,1.41922662]
[1754789962249,0.51321298,116740.0,116730.0,1.1575596]
[1754789962545,0.51321298,116740.0,116730.0,1.41922662]
[1754789963250,0.51321298,116740.0,116730.0,1.1575596]
[1754789963557,0.51321298,116740.0,116730.0,1.41922662]
[1754789964248,0.51321298,116740.0,116730.0,1.1575596]
[1754789964444,0.51321298,116740.0,116730.0,1.41922662]
[1754789965940,0.51321298,116740.0,116730.0,1.1575596]
[1754789966151,0.51321298,116740.0,116730.0,1.41922662]
[1754789969953,0.51321298,116740.0,116730.0,1.1575596]
[1754789970252,0.51321298,116740.0,116730.0,1.41922662]
[1754789970950,0.77488,116740.0,116730.0,1.41922662]
[1754789971754,0.51321298,116740.0,116730.0,1.41922662]
[1754789974547,0.77488,116740.0,116730.0,1.41922662]
[1754789974952,0.41069298,116740.0,116730.0,1.41922662]
[1754789975150,0.67236,116740.0,116730.0,1.41922662]
[1754789975355,0.41069298,116740.0,116730.0,1.41922662]
[1754789975557,0.47324298,116740.0,116730.0,1.41922662]
[1754789975761,0.51548298,116740.0,116730.0,1.41922662]
[1754789978050,0.51548298,116740.0,116730.0,1.1575596]
[1754789978255,0.51548298,116740.0,116730.0,1.41922662]
[1754789980861,0.77715,116740.0,116730.0,1.41922662]
[1754789981156,0.02519298,116740.0,116730.0,0.87009364]
[1754789981366,0.05035298,116740.0,116730.0,1.41950662]
[1754789981661,0.41731,116740.0,116730.0,1.41950662]
[1754789982563,0.15564298,116740.0,116730.0,1.41950662]
[1754789982860,0.02519298,116740.0,116730.0,1.68117364]
[1754789983168,0.02519298,116740.0,116730.0,2.04421364]
[1754789983462,0.05035298,116740.0,116730.0,2.04421364]
[1754789988365,0.05035298,116740.0,116730.0,1.5208796]
[1754789988565,0.05035298,116740.0,116730.0,2.04421364]
[1754789989162,0.02519298,116740.0,116730.0,2.04421364]
[1754789989556,0.02419255,116740.0,116730.0,1.5208796]
[1754789989771,0.02419255,116740.0,116730.0,2.04421364]
[1754789990068,0.02419255,116740.0,116730.0,1.5208796]
[1754789990463,0.02419255,116740.0,116730.0,2.04421364]
[1754789990662,0.04935255,116740.0,116730.0,2.04421364]
[1754789992961,0.04935255,116740.0,116730.0,2.31321364]
[1754789993373,0.04935255,116740.0,116730.0,1.7898796]
[1754789993669,0.04935255,116740.0,116730.0,2.31321364]
[1754789994374,0.04935255,116740.0,116730.0,1.7898796]
[1754789994568,0.04935255,116740.0,116730.0,2.31321364]
[1754789995464,0.04935255,116740.0,116730.0,1.7898796]
[1754789995658,0.04935255,116740.0,116730.0,2.31321364]
[1754789996869,0.06507255,116740.0,116730.0,2.31321364]
[1754789997370,0.04935255,116740.0,116730.0,2.31321364]
[1754789997665,0.04935255,116740.0,116730.0,1.7898796]
[1754789997860,0.04935255,116740.0,116730.0,2.31321364]
[1754789998570,0.04935255,116740.0,116730.0,1.95241364]
[1754789998770,0.04935255,116740.0,116730.0,2.31321364]
[1754789998969,0.10002255,116740.0,116730.0,2.31321364]
[1754789999365,0.06507255,116740.0,116730.0,2.31321364]
[1754789999566,0.06507255,116740.0,116730.0,1.7898796]
[1754789999766,0.06507255,116740.0,116730.0,2.31321364]
[1754790000369,0.02916,116740.0,116730.0,2.31321364]
[1754790000973,0.02916,116740.0,116730.0,1.7898796]
[1754790001273,0.02916,116740.0,116730.0,2.31321364]
[1754790003373,0.004,116740.0,116730.0,2.31321364]
[1754790004177,0.004,116740.0,116730.0,1.7898796]
[1754790004371,0.004,116740.0,116730.0,2.31321364]
[1754790004874,0.02916,116740.0,116730.0,2.31321364]
[1754790014673,0.0503708,116740.0,116730.0,2.31321364]
[1754790015282,0.0503708,116740.0,116730.0,1.7898796]
[1754790015483,0.0503708,116740.0,116730.0,2.31321364]
[1754790016081,0.0503708,116740.0,116730.0,1.7898796]
[1754790016281,0.0503708,116740.0,116730.0,2.31321364]
[1754790016482,0.0503708,116740.0,116730.0,1.7898796]
[1754790016779,0.0503708,116740.0,116730.0,2.04421364]
[1754790017080,0.0503708,116740.0,116730.0,1.5208796]
[1754790017273,0.0503708,116740.0,116730.0,2.04421364]
[1754790020283,0.0503708,116740.0,116730.0,1.5208796]
[1754790020485,0.0503708,116740.0,116730.0,2.04421364]
[1754790022582,0.0503708,116740.0,116730.0,2.31321364]
[1754790023593,0.0503708,116740.0,116730.0,1.7898796]
[1754790023885,0.0503708,116740.0,116730.0,2.31321364]
[1754790031589,0.0503708,116740.0,116730.0,1.7898796]
[1754790031789,0.0503708,116740.0,116730.0,2.31321364]
[1754790034993,0.1534608,116740.0,116730.0,2.31321364]
[1754790036696,0.1358108,116740.0,116730.0,2.31321364]
[1754790037698,0.1010908,116740.0,116730.0,2.31321364]
[1754790038904,0.1010908,116740.0,116730.0,1.7898796]
[1754790039104,0.1010908,116740.0,116730.0,2.31321364]
[1754790040999,0.1009208,116740.0,116730.0,2.31321364]
[1754790041200,0.1505808,116740.0,116730.0,2.31321364]
[1754790045796,0.1328008,116740.0,116730.0,2.31321364]
[1754790046304,0.1505808,116740.0,116730.0,2.31321364]
[1754790046605,0.0252108,116740.0,116730.0,2.31321364]
[1754790046809,0.0500208,116740.0,116730.0,2.31321364]
[1754790051511,0.0500208,116740.0,116730.0,1.7898796]
[1754790051713,0.1502308,116740.0,116730.0,2.32113364]
[1754790053411,0.1502308,116740.0,116730.0,1.49989364]
[1754790053617,0.1502308,116740.0,116730.0,2.05914662]
[1754790054703,0.1502308,116740.0,116730.0,2.32081364]
[1754790056311,0.0787708,116740.0,116730.0,1.49989364]
[1754790056515,0.1502308,116740.0,116730.0,1.95977364]
[1754790057208,0.1502308,116740.0,116730.0,1.69810662]
[1754790057608,0.1502308,116740.0,116730.0,1.95977364]
[1754790059912,0.1502308,116740.0,116730.0,1.4364396]
[1754790060114,0.1502308,116740.0,116730.0,1.95977364]
[1754790063423,0.5110308,116740.0,116730.0,1.69810662]
[1754790063638,0.85834512,116740.0,116730.0,0.87742662]
[1754790063915,0.41189782,116740.0,116730.0,1.42858662]
[1754790064118,0.77269782,116740.0,116730.0,1.42858662]
[1754790064318,0.85834512,116740.0,116730.0,1.42858662]
[1754790064616,1.12001214,116740.0,116730.0,1.1641796]
[1754790064816,1.12001214,116740.0,116730.0,0.1722812]
[1754790065223,1.6907564,116740.0,116730.0,0.1722812]
[1754790067118,1.16742236,116740.0,116730.0,0.1722812]
[1754790067326,1.6907564,116740.0,116730.0,0.1722812]
[1754790069120,1.16742236,116740.0,116730.0,0.1722812]
[1754790069319,1.6907564,116740.0,116730.0,0.1722812]
[1754790078330,2.50961436,116740.0,116730.0,0.1722812]
[1754790079633,2.33828636,116740.0,116730.0,0.1722812]
[1754790084031,1.81495232,116740.0,116730.0,0.1722812]
[1754790084228,2.33828636,116740.0,116730.0,0.1722812]
[1754790094639,2.3383559,116740.0,116730.0,0.1722812]
[1754790102041,2.0383559,116740.0,116730.0,0.1722812]
[1754790102349,1.51502186,116740.0,116730.0,0.1722812]
[1754790102549,2.0383559,116740.0,116730.0,0.1722812]
[1754790103955,1.51502186,116740.0,116730.0,0.1722812]
[1754790104144,2.0383559,116740.0,116730.0,0.1722812]
[1754790109754,1.51502186,116740.0,116730.0,0.1722812]
[1754790110053,2.0383559,116740.0,116730.0,0.1722812]
[1754790110252,2.3991559,116740.0,116730.0,0.1722812]
[1754790110654,1.87582186,116740.0,116730.0,0.1722812]
[1754790110856,2.3991559,116740.0,116730.0,0.1722812]
[1754790111754,1.5802359,116740.0,116730.0,0.1722812]
[1754790111946,1.87254186,116740.0,116730.0,0.1722812]
[1754790112147,2.3958759,116740.0,116730.0,0.1722812]
[1754790120568,1.87254186,116740.0,116730.0,0.1722812]
[1754790121561,2.3958759,116740.0,116730.0,0.1722812]
[1754790122760,1.87254186,116740.0,116730.0,0.1722812]
[1754790122961,2.3958759,116740.0,116730.0,0.1722812]
[1754790124664,1.87254186,116740.0,116730.0,0.1722812]